fUST/lending_fUST_20250618
["ID","MTS","AMOUNT","RATE_DAILY","PERIOD"]
[366426424,1750252232588,-1521.50742211,0.00020107,2]
[366426425,1750252232597,-420.0,0.00020151,2]
[366426427,1750252232607,-174.520179,0.00020187,2]
[366426429,1750252232617,-500.0,0.00020247,2]
[366426431,1750252232627,-151.0,0.00020247,2]
[366426433,1750252232637,-151.0,0.00020247,2]
[366426435,1750252232646,-317.95,0.00020247,2]
[366426436,1750252232655,-317.95,0.00020247,2]
[366426438,1750252232664,-151.0,0.00020247,2]
[366426440,1750252232674,-151.0,0.00020247,2]
[366426442,1750252232683,-500.0,0.00020247,2]
[366426444,1750252232693,-151.0,0.00020247,2]
[366426445,1750252232702,-207.02667093,0.00020247,2]
[366426447,1750252232711,-154.96972564,0.00020247,2]
[366426449,1750252232721,-267.30678866,0.00020247,2]
[366426451,1750252232731,-500.0,0.00020247,2]
[366426453,1750252232742,-151.0,0.00020247,2]
[366426455,1750252232752,-620.0,0.00020248,2]
[366426456,1750252232761,-500.0,0.00020274,2]
[366426458,1750252232771,-151.0,0.00020274,2]
[366426460,1750252232781,-642.72022629,0.00020274,2]
[366426462,1750252232791,-151.0,0.00020274,2]
[366426464,1750252232801,-572.5081509,0.00020301,2]
[366426466,1750252232813,-500.0,0.00020302,2]
[366426467,1750252232823,-214.63597858,0.00020302,2]
[366426469,1750252232832,-151.0,0.00020302,2]
[366426471,1750252232842,-171.9938237,0.00020302,2]
[366426473,1750252232852,-5507.1893341,0.00020302,2]
[366426475,1750252232862,-1521.50742211,0.00020314,3]
[366426477,1750252232872,-500.0,0.00020329,2]
[366426478,1750252232881,-227.28743474,0.00020329,2]
[366426480,1750252232890,-71.51107796,0.00020357,2]
[366426482,1750252232903,-428.48892204,0.00020357,2]
[366426484,1750252232913,-509.73866537,0.00020384,2]
[366426486,1750252232924,-313.0,0.00020416,2]
[366426488,1750252232933,-151.0,0.00020461,2]
[366426490,1750252232943,-151.317497,0.00020461,2]
[366426491,1750252232952,-151.0,0.00020461,2]
[366426493,1750252232961,-151.0,0.00020461,2]
[366426495,1750252232972,-235.977306,0.00020461,2]
[366426497,1750252232982,-235.977306,0.00020461,2]
[366426499,1750252232992,-151.0,0.00020461,2]
[366426501,1750252233003,-616.84278252,0.00020464,2]
[366426503,1750252233012,-845.78193577,0.00020484,2]
[366426505,1750252233022,-160.0,0.00020484,2]
[366426507,1750252233032,-420.0,0.00020484,2]
[366426508,1750252233041,-315.48910325,0.00020486,2]
[366426510,1750252233051,-424.70586748,0.00020486,2]
[366426512,1750252233061,-229.98435572,0.00020486,2]
[366426514,1750252233070,-12542.39314967,0.00020488,2]
[366426516,1750252233081,-160.0,0.00020488,2]
[366426518,1750252233091,-160.0,0.00020488,2]
[366426519,1750252233101,-835.98428123,0.00020488,2]
[366426521,1750252233111,-213.43818883,0.00020488,2]
[366426523,1750252233120,-353.743171,0.00020488,2]
[366426525,1750252233130,-353.743171,0.00020488,2]
[366426527,1750252233140,-151.0,0.00020488,2]
[366426529,1750252233150,-151.0,0.00020488,2]
[366426531,1750252233160,-151.0,0.00020488,2]
[366426532,1750252233170,-151.0,0.00020488,2]
[366426534,1750252233179,-151.0,0.00020488,2]
[366426536,1750252233190,-151.0,0.00020488,2]
[366426538,1750252233200,-151.0,0.00020488,2]
[366426540,1750252233210,-233.10491,0.00020488,2]
[366426542,1750252233222,-151.307057,0.00020488,2]
[366426543,1750252233232,-151.0,0.00020488,2]
[366426545,1750252233242,-151.0,0.00020488,2]
[366426547,1750252233253,-151.0,0.00020488,2]
[366426549,1750252233263,-151.0,0.00020488,2]
[366426551,1750252233272,-152.30779,0.00020488,2]
[366426553,1750252233283,-151.0,0.00020488,2]
[366426554,1750252233293,-151.0,0.00020488,2]
[366426556,1750252233303,-235.977306,0.00020488,2]
[366426558,1750252233313,-235.977306,0.00020488,2]
[366426560,1750252233323,-151.0,0.00020488,2]
[366426562,1750252233333,-151.0,0.00020488,2]
[366426564,1750252233344,-177.856565,0.00020488,2]
[366426566,1750252233354,-177.856565,0.00020488,2]
[366426567,1750252233364,-151.0,0.00020488,2]
[366426569,1750252233374,-151.0,0.00020488,2]
[366426571,1750252233385,-151.0,0.00020488,2]
[366426573,1750252233394,-151.0,0.00020488,2]
[366426575,1750252233404,-151.0,0.00020488,2]
[366426577,1750252233415,-151.0,0.00020488,2]
[366426579,1750252233424,-151.0,0.00020488,2]
[366426580,1750252233434,-151.0,0.00020488,2]
[366426582,1750252233444,-151.0,0.00020488,2]
[366426584,1750252233454,-151.0,0.00020488,2]
[366426586,1750252233464,-151.641305,0.00020488,2]
[366426588,1750252233477,-151.0,0.00020488,2]
[366426589,1750252233486,-550.59766,0.00020488,2]
[366426590,1750252233497,-550.59766,0.00020488,2]
[366426591,1750252233507,-1300.845642,0.00020488,2]
[366426592,1750252233516,-1300.845642,0.00020488,2]
[366426593,1750252233526,-151.0,0.00020488,2]
[366426594,1750252233536,-151.0,0.00020488,2]
[366426595,1750252233545,-151.0,0.00020488,2]
[366426596,1750252233555,-151.0,0.00020488,2]
[366426597,1750252233565,-151.0,0.00020488,2]
[366426598,1750252233575,-151.0,0.00020488,2]
[366426599,1750252233584,-151.0,0.00020488,2]
[366426600,1750252233595,-151.0,0.0002049,2]
[366426601,1750252233605,-151.0,0.0002049,2]
[366426602,1750252233615,-151.0,0.0002049,2]
[366426603,1750252233625,-151.0,0.0002049,2]
[366426604,1750252233635,-151.0,0.0002049,2]
[366426605,1750252233645,-151.0,0.0002049,2]
[366426606,1750252233655,-5000.0,0.0002049,2]
[366426607,1750252233665,-908.93,0.00020514,3]
[366426608,1750252233675,-454.46,0.00020514,3]
[366426609,1750252233685,-500.0,0.00020521,2]
[366426610,1750252233695,-1521.50742211,0.00020521,3]
[366426611,1750252233705,-151.0,0.00020521,2]
[366426612,1750252233715,-151.0,0.00020521,2]
[366426613,1750252233726,-300.777987,0.00020521,2]
[366426614,1750252233736,-152.188611,0.00020521,2]
[366426615,1750252233746,-151.578217,0.00020521,2]
[366426616,1750252233756,-151.0,0.00020521,2]
[366426617,1750252233766,-550.59766,0.00020521,2]
[366426618,1750252233778,-550.59766,0.00020521,2]
[366426619,1750252233788,-151.0,0.00020521,2]
[366426620,1750252233798,-151.0,0.00020524,2]
[366426621,1750252233808,-151.0,0.00020524,2]
[366426622,1750252233818,-155.290581,0.00020524,2]
[366426623,1750252233828,-151.0,0.00020524,2]
[366426624,1750252233838,-151.0,0.00020524,2]
[366426625,1750252233848,-151.0,0.00020524,2]
[366426626,1750252233857,-151.0,0.00020524,2]
[366426627,1750252233867,-151.0,0.00020524,2]
[366426628,1750252233877,-151.0,0.00020524,2]
[366426629,1750252233887,-177.856565,0.00020524,2]
[366426630,1750252233897,-177.856565,0.00020524,2]
[366426631,1750252233907,-177.856565,0.00020524,2]
[366426632,1750252233919,-177.856565,0.00020524,2]
[366426633,1750252233929,-151.0,0.00020524,2]
[366426634,1750252233938,-207.954539,0.00020524,2]
[366426635,1750252233948,-151.0,0.00020524,2]
[366426636,1750252233958,-151.0,0.00020524,2]
[366426637,1750252233969,-151.0,0.00020524,2]
[366426638,1750252233978,-151.0,0.00020524,2]
[366426639,1750252233988,-151.0,0.00020524,2]
[366426640,1750252233998,-151.0,0.00020524,2]
[366426641,1750252234009,-151.0,0.00020524,2]
[366426642,1750252234019,-151.0,0.00020524,2]
[366426643,1750252234028,-151.0,0.00020524,2]
[366426644,1750252234038,-151.0,0.00020524,2]
[366426645,1750252234048,-550.59766,0.00020524,2]
[366426646,1750252234057,-1300.845642,0.00020524,2]
[366426647,1750252234067,-1300.845642,0.00020524,2]
[366426648,1750252234077,-550.59766,0.00020524,2]
[366426649,1750252234087,-1300.845642,0.00020524,2]
[366426650,1750252234098,-1300.845642,0.00020524,2]
[366426651,1750252234108,-151.0,0.00020524,2]
[366426652,1750252234118,-173.198696,0.00020524,2]
[366426653,1750252234127,-151.0,0.00020524,2]
[366426654,1750252234137,-151.0,0.00020524,2]
[366426655,1750252234147,-151.0,0.00020524,2]
[366426656,1750252234157,-151.0,0.00020524,2]
[366426657,1750252234172,-151.0,0.00020524,2]
[366426659,1750252234182,-266.161006,0.00020524,2]
[366426660,1750252234192,-151.0,0.00020524,2]
[366426661,1750252234202,-151.0,0.00020524,2]
[366426662,1750252234211,-201.205002,0.00020524,2]
[366426664,1750252234223,-207.4,0.00020524,2]
[366426665,1750252234234,-5000.0,0.00020524,2]
[366426666,1750252234244,-1688.0,0.00020524,2]
[366426668,1750252234254,-3418.77478341,0.00020524,2]
[366426670,1750252234264,-25000.0,0.00020524,2]
[366426672,1750252234274,-2517.4686787,0.00020524,2]
[366426674,1750252234284,-151.0,0.00020544,2]
[366426676,1750252234294,-152.893641,0.00020544,2]
[366426678,1750252234304,-196.750144,0.00020555,2]
[366426680,1750252234314,-151.0,0.00020555,2]
[366426682,1750252234325,-550.59766,0.00020555,2]
[366426684,1750252234335,-550.59766,0.00020555,2]
[366426686,1750252234345,-151.0,0.00020555,2]
[366426688,1750252234355,-214.304887,0.00020556,2]
[366426690,1750252234366,-151.0,0.00020556,2]
[366426692,1750252234376,-151.0,0.00020556,2]
[366426694,1750252234386,-151.0,0.00020556,2]
[366426696,1750252234396,-317.95,0.00020556,2]
[366426697,1750252234406,-317.95,0.00020556,2]
[366426699,1750252234416,-151.0,0.00020556,2]
[366426702,1750252234426,-151.0,0.00020556,2]
[366426704,1750252234435,-154.696438,0.00020556,2]
[366426706,1750252234445,-151.0,0.00020556,2]
[366426707,1750252234455,-151.0,0.00020556,2]
[366426709,1750252234465,-151.0,0.00020556,2]
[366426711,1750252234478,-151.0,0.00020556,2]
[366426713,1750252234488,-151.0,0.00020556,2]
[366426716,1750252234498,-151.0,0.00020556,2]
[366426717,1750252234507,-151.0,0.00020556,2]
[366426719,1750252234517,-151.0,0.00020556,2]
[366426721,1750252234527,-151.0,0.00020556,2]
[366426723,1750252234538,-151.0,0.00020556,2]
[366426725,1750252234548,-151.0,0.00020556,2]
[366426727,1750252234558,-151.358761,0.00020556,2]
[366426729,1750252234568,-151.0,0.00020556,2]
[366426731,1750252234578,-151.0,0.00020556,2]
[366426733,1750252234588,-151.0,0.00020556,2]
[366426735,1750252234598,-151.0,0.00020556,2]
[366426738,1750252234609,-151.0,0.00020556,2]
[366426739,1750252234619,-151.0,0.00020556,2]
[366426741,1750252234630,-151.0,0.00020556,2]
[366426743,1750252234643,-151.0,0.00020556,2]
[366426746,1750252234653,-353.743171,0.00020556,2]
[366426747,1750252234665,-353.743171,0.00020556,2]
[366426748,1750252234675,-172.170783,0.00020556,2]
[366426749,1750252234686,-151.0,0.00020556,2]
[366426750,1750252234696,-151.0,0.00020556,2]
[366426751,1750252234707,-151.0,0.00020556,2]
[366426752,1750252234720,-151.0,0.00020556,2]
[366426753,1750252234730,-151.0,0.00020556,2]
[366426754,1750252234741,-151.0,0.00020556,2]
[366426755,1750252234751,-151.0,0.00020556,2]
[366426756,1750252234763,-151.0,0.00020556,2]
[366426757,1750252234775,-151.0,0.00020556,2]
[366426758,1750252234786,-151.0,0.00020556,2]
[366426759,1750252234796,-152.907855,0.00020556,2]
[366426760,1750252234806,-151.0,0.00020556,2]
[366426761,1750252234910,-151.0,0.00020556,2]
[366426762,1750252234921,-219.535341,0.00020556,2]
[366426763,1750252234933,-235.977306,0.00020556,2]
[366426764,1750252234942,-235.977306,0.00020556,2]
[366426765,1750252234952,-151.0,0.00020556,2]
[366426766,1750252234962,-151.0,0.00020556,2]
[366426767,1750252234975,-151.0,0.00020556,2]
[366426768,1750252234985,-151.0,0.00020556,2]
[366426769,1750252234995,-177.856565,0.00020556,2]
[366426770,1750252235005,-177.856565,0.00020556,2]
[366426771,1750252235015,-151.0,0.00020556,2]
[366426772,1750252235024,-151.0,0.00020556,2]
[366426773,1750252235034,-151.0,0.00020556,2]
[366426774,1750252235044,-238.820812,0.00020556,2]
[366426775,1750252235053,-151.0,0.00020556,2]
[366426776,1750252235062,-550.59766,0.00020556,2]
[366426777,1750252235072,-1300.845642,0.00020556,2]
[366426778,1750252235081,-550.59766,0.00020556,2]
[366426779,1750252235091,-1300.845642,0.00020556,2]
[366426780,1750252235100,-151.0,0.00020556,2]
[366426781,1750252235109,-151.0,0.00020556,2]
[366426782,1750252235119,-151.0,0.00020556,2]
[366426783,1750252235128,-151.0,0.00020556,2]
[366426784,1750252235137,-884.586432,0.00020579,2]
[366426785,1750252235147,-226.928,0.00020668,2]
[366426786,1750252235156,-500.0,0.00020674,2]
[366426787,1750252235166,-1521.50742211,0.00020728,3]
[366426788,1750252235175,-151.0,0.00020728,2]
[366426789,1750252235184,-151.0,0.00020728,2]
[366426790,1750252235194,-151.0,0.00020728,2]
[366426791,1750252235203,-151.0,0.00020728,2]
[366426792,1750252235212,-235.977306,0.00020728,2]
[366426794,1750252235222,-235.977306,0.00020728,2]
[366426795,1750252235231,-177.856565,0.00020728,2]
[366426796,1750252235241,-177.856565,0.00020728,2]
[366426798,1750252235250,-151.0,0.00020728,2]
[366426800,1750252235259,-151.0,0.00020728,2]
[366426802,1750252235268,-151.0,0.00020728,2]
[366426803,1750252235277,-151.0,0.00020728,2]
[366426805,1750252235287,-550.59766,0.00020728,2]
[366426806,1750252235298,-1300.845642,0.00020728,2]
[366426807,1750252235308,-550.59766,0.00020728,2]
[366426808,1750252235317,-1300.845642,0.00020728,2]
[366426809,1750252235326,-151.0,0.00020728,2]
[366426810,1750252235336,-151.0,0.00020728,2]
[366426811,1750252235346,-151.0,0.00020728,2]
[366426812,1750252235355,-151.0,0.00020728,2]
[366426813,1750252235365,-500.0,0.00020795,2]
[366426814,1750252235375,-228.0,0.00020797,2]
[366426815,1750252235384,-228.0,0.00020828,2]
[366426816,1750252235393,-353.743171,0.000209,2]
[366426817,1750252235403,-353.743171,0.000209,2]
[366426818,1750252235413,-960.91682486,0.000209,2]
[366426819,1750252235422,-1521.50742211,0.00020934,4]
[366426820,1750252235431,-228.0,0.00020955,2]
[366426821,1750252235441,-3157.0,0.00020965,2]
[366426822,1750252235451,-151.0,0.00020965,2]
[366426823,1750252235460,-500.0,0.00021068,2]
[366426824,1750252235470,-151.0,0.00021069,2]
[366426825,1750252235480,-151.0,0.00021069,2]
[366426826,1750252235489,-151.0,0.00021069,2]
[366426827,1750252235498,-151.0,0.00021069,2]
[366426828,1750252235508,-151.0,0.00021072,2]
[366426829,1750252235518,-177.856565,0.00021072,2]
[366426830,1750252235527,-177.856565,0.00021072,2]
[366426831,1750252235536,-151.0,0.00021072,2]
[366426832,1750252235545,-209.882978,0.00021072,2]
[366426833,1750252235555,-260.250928,0.00021072,2]
[366426834,1750252235564,-1300.845642,0.00021072,2]
[366426835,1750252235573,-1300.845642,0.00021072,2]
[366426836,1750252235583,-151.0,0.00021072,2]
[366426837,1750252235592,-217.100574,0.00021072,2]
[366426838,1750252235601,-151.0,0.00021072,2]
[366426839,1750252235611,-5000.0,0.00021072,2]
[366426840,1750252235620,-25000.0,0.00021072,2]
[366426841,1750252235630,-228.0,0.00021131,2]
[366426842,1750252235639,-550.59766,0.00021131,2]
[366426843,1750252235649,-550.59766,0.00021131,2]
[366426844,1750252235658,-151.0,0.00021131,2]
[366426845,1750252235668,-151.0,0.00021141,2]
[366426846,1750252235677,-151.0,0.00021141,2]
[366426847,1750252235687,-1025.182536,0.00021141,2]
[366426848,1750252235696,-151.0,0.00021141,2]
[366426849,1750252235706,-235.977306,0.00021141,2]
[366426850,1750252235715,-235.977306,0.00021141,2]
[366426851,1750252235726,-1521.50742211,0.00021141,4]
[366426852,1750252235735,-152.60008,0.0002119,2]
[366426853,1750252235745,-151.0,0.00021194,2]
[366426854,1750252235754,-151.0,0.00021194,2]
[366426855,1750252235764,-3157.0,0.00021194,2]
[366426856,1750252235773,-500.0,0.00021222,3]
[366426857,1750252235782,-228.0,0.00021292,2]
[366426858,1750252235791,-239.64954421,0.00021336,4]
[366426859,1750252235800,-358.41937958,0.00021342,2]
[366426860,1750252235809,-509.79302906,0.00021344,2]
[366426861,1750252235818,-500.0,0.00021344,2]
[366426862,1750252235828,-151.0,0.00021347,2]
[366426863,1750252235838,-151.0,0.00021347,2]
[366426864,1750252235848,-151.0,0.00021347,2]
[366426865,1750252235857,-151.0,0.00021347,2]
[366426866,1750252235867,-151.0,0.00021347,2]
[366426867,1750252235876,-177.856565,0.00021347,2]
[366426868,1750252235885,-177.856565,0.00021347,2]
[366426869,1750252235894,-1300.845642,0.00021347,2]
[366426870,1750252235904,-1300.845642,0.00021347,2]
[366426871,1750252235914,-151.0,0.00021348,2]
[366426872,1750252235928,-151.0,0.00021348,2]
[366426873,1750252235938,-151.0,0.00021348,2]
[366426874,1750252235947,-353.743171,0.00021348,2]
[366426875,1750252235957,-353.743171,0.00021348,2]
[366426876,1750252235967,-151.0,0.00021348,2]
[366426877,1750252235976,-151.0,0.00021348,2]
[366426878,1750252235985,-1025.182536,0.00021348,2]
[366426879,1750252235995,-151.0,0.00021348,2]
[366426880,1750252236005,-151.0,0.00021348,2]
[366426881,1750252236014,-151.0,0.00021348,2]
[366426882,1750252236024,-235.977306,0.00021348,2]
[366426883,1750252236034,-235.977306,0.00021348,2]
[366426884,1750252236044,-151.0,0.00021348,2]
[366426885,1750252236053,-151.0,0.00021348,2]
[366426886,1750252236063,-151.0,0.00021348,2]
[366426887,1750252236072,-550.59766,0.00021348,2]
[366426888,1750252236081,-550.59766,0.00021348,2]
[366426889,1750252236091,-267.730693,0.00021348,2]
[366426890,1750252236100,-1521.50742211,0.00021348,5]
[366426891,1750252236110,-742.0,0.00021351,2]
[366426892,1750252236119,-151.0,0.00021353,2]
[366426893,1750252236129,-151.0,0.00021354,2]
[366426894,1750252236139,-3452.58,0.0002136,2]
[366426895,1750252236149,-500.0,0.00021396,2]
[366426896,1750252236159,-502.52916421,0.00021396,2]
[366426897,1750252236168,-331.93682799,0.00021396,2]
[366426898,1750252236177,-500.0,0.00021396,2]
[366426899,1750252236189,-500.0,0.00021396,2]
[366426900,1750252236199,-500.0,0.00021396,2]
[366426901,1750252236208,-258.0,0.00021396,2]
[366426902,1750252236218,-151.0,0.00021396,2]
[366426903,1750252236227,-151.0,0.00021417,2]
[366426904,1750252236237,-151.0,0.00021417,2]
[366426905,1750252236251,-151.931106,0.00021417,2]
[366426906,1750252236260,-317.95,0.00021417,2]
[366426907,1750252236270,-317.95,0.00021417,2]
[366426908,1750252236279,-151.0,0.00021417,2]
[366426909,1750252236288,-151.0,0.00021417,2]
[366426910,1750252236298,-550.59766,0.00021417,2]
[366426911,1750252236307,-550.59766,0.00021417,2]
[366426912,1750252236317,-151.0,0.0002145,2]
[366426913,1750252236327,-177.856565,0.0002145,2]
[366426914,1750252236338,-177.856565,0.0002145,2]
[366426915,1750252236347,-151.0,0.0002145,2]
[366426916,1750252236357,-1300.845642,0.0002145,2]
[366426917,1750252236366,-1300.845642,0.0002145,2]
[366426918,1750252236376,-742.0,0.0002145,2]
[366426919,1750252236386,-151.0,0.00021555,2]
[366426920,1750252236395,-1521.50742211,0.00021555,5]
[366426921,1750252236404,-353.743171,0.0002159,2]
[366426922,1750252236413,-353.743171,0.0002159,2]
[366426923,1750252236423,-160.0,0.000216,2]
[366426924,1750252236433,-164.25823053,0.000216,2]
[366426925,1750252236442,-1551.1,0.000216,2]
[366426926,1750252236452,-151.0,0.000216,2]
[366426927,1750252236461,-151.0,0.0002162,2]
[366426928,1750252236472,-151.0,0.0002162,2]
[366426929,1750252236481,-5000.0,0.0002162,2]
[366426930,1750252236491,-25000.0,0.0002162,2]
[366426931,1750252236500,-153.900171,0.00021662,2]
[366426932,1750252236509,-151.0,0.00021662,2]
[366426933,1750252236518,-151.0,0.00021662,2]
[366426934,1750252236527,-151.0,0.00021662,2]
[366426935,1750252236537,-240.803127,0.00021662,2]
[366426936,1750252236546,-151.0,0.00021662,2]
[366426937,1750252236555,-169.111676,0.00021662,2]
[366426938,1750252236566,-151.0,0.00021662,2]
[366426939,1750252236575,-1025.182536,0.00021662,2]
[366426940,1750252236585,-151.0,0.00021662,2]
[366426941,1750252236594,-151.0,0.00021662,2]
[366426942,1750252236604,-235.977306,0.00021662,2]
[366426943,1750252236613,-235.977306,0.00021662,2]
[366426944,1750252236623,-151.0,0.00021662,2]
[366426945,1750252236632,-151.0,0.00021662,2]
[366426946,1750252236641,-151.0,0.00021662,2]
[366426947,1750252236651,-550.59766,0.00021662,2]
[366426948,1750252236660,-550.597665,0.00021662,2]
[366426949,1750252236670,-151.0,0.00021704,2]
[366426950,1750252236679,-177.856565,0.00021704,2]
[366426951,1750252236688,-177.856565,0.00021704,2]
[366426952,1750252236698,-1300.845642,0.00021704,2]
[366426953,1750252236707,-1300.845642,0.00021704,2]
[366426954,1750252236717,-151.0,0.00021717,2]
[366426955,1750252236726,-151.0,0.00021717,2]
[366426956,1750252236736,-317.95,0.00021717,2]
[366426957,1750252236745,-317.95,0.00021717,2]
[366426958,1750252236755,-151.0,0.00021717,2]
[366426959,1750252236765,-151.0,0.00021717,2]
[366426960,1750252236774,-151.0,0.00021717,2]
[366426961,1750252236784,-151.0,0.00021717,2]
[366426962,1750252236793,-151.0,0.00021717,2]
[366426963,1750252236803,-151.0,0.00021717,2]
[366426964,1750252236813,-151.0,0.00021717,2]
[366426965,1750252236822,-353.743171,0.00021717,2]
[366426966,1750252236832,-353.743171,0.00021717,2]
[366426967,1750252236841,-151.0,0.00021717,2]
[366426968,1750252236850,-1025.182536,0.00021717,2]
[366426969,1750252236860,-151.0,0.00021717,2]
[366426970,1750252236870,-151.0,0.00021717,2]
[366426971,1750252236881,-151.0,0.00021717,2]
[366426972,1750252236891,-235.977306,0.00021717,2]
[366426973,1750252236982,-235.977306,0.00021717,2]
[366426974,1750252236992,-151.0,0.00021717,2]
[366426975,1750252237003,-268.20526,0.00021717,2]
[366426976,1750252237012,-916.476909,0.00021726,3]
[366426977,1750252237021,-353.743171,0.00021741,2]
[366426978,1750252237031,-353.743171,0.00021741,2]
[366426979,1750252237041,-151.0,0.00021741,2]
[366426980,1750252237051,-177.856565,0.00021741,2]
[366426981,1750252237061,-177.856569,0.00021741,2]
[366426982,1750252237071,-151.0,0.00021741,2]
[366426983,1750252237080,-1300.845642,0.00021741,2]
[366426984,1750252237090,-1300.845651,0.00021741,2]
[366426985,1750252237100,-151.0,0.00021752,2]
[366426986,1750252237109,-151.0,0.00021752,2]
[366426987,1750252237119,-151.0,0.00021762,2]
[366426988,1750252237129,-211.021358,0.00021762,2]
[366426989,1750252237139,-1025.182536,0.00021762,2]
[366426990,1750252237149,-265.068097,0.00021762,2]
[366426991,1750252237159,-235.977306,0.00021762,2]
[366426992,1750252237169,-235.977306,0.00021762,2]
[366426993,1750252237178,-1521.50742211,0.00021762,5]
[366426994,1750252237188,-160.0,0.00021789,2]
[366426995,1750252237198,-151.0,0.00021831,2]
[366426996,1750252237207,-151.0,0.00021831,2]
[366426997,1750252237216,-151.0,0.00021831,2]
[366426998,1750252237230,-742.0,0.00021831,2]
[366426999,1750252237240,-1072.89507501,0.00021884,3]
[366427000,1750252237356,-744.96492499,0.00021884,3]
[366427001,1750252237366,-908.92,0.00021884,3]
[366427002,1750252237375,-215.0738,0.00021893,2]
[366427003,1750252237385,-151.0,0.00021906,2]
[366427004,1750252237394,-151.0,0.00021916,2]
[366427005,1750252237404,-151.0,0.00021916,2]
[366427006,1750252237414,-200.52773835,0.00021916,2]
[366427007,1750252237423,-152.075357,0.00021917,2]
[366427008,1750252237432,-151.0,0.00021917,2]
[366427009,1750252237442,-151.0,0.00021917,2]
[366427010,1750252237451,-151.0,0.00021917,2]
[366427011,1750252237460,-151.0,0.00021917,2]
[366427012,1750252237470,-151.0,0.00021917,2]
[366427013,1750252237480,-151.64582,0.00021917,2]
[366427014,1750252237489,-151.0,0.00021917,2]
[366427015,1750252237498,-151.0,0.00021917,2]
[366427016,1750252237508,-151.0,0.00021917,2]
[366427017,1750252237517,-156.687068,0.00021917,2]
[366427018,1750252237526,-183.499842,0.00021917,2]
[366427019,1750252237536,-151.0,0.00021917,2]
[366427020,1750252237545,-151.969126,0.00021917,2]
[366427021,1750252237555,-317.95,0.00021917,2]
[366427022,1750252237564,-317.95,0.00021917,2]
[366427024,1750252237573,-317.95,0.00021917,2]
[366427025,1750252237582,-317.95,0.00021917,2]
[366427026,1750252237592,-317.95,0.00021917,2]
[366427027,1750252237601,-317.95,0.00021917,2]
[366427028,1750252237610,-317.95,0.00021917,2]
[366427029,1750252237619,-317.95,0.00021917,2]
[366427030,1750252237628,-151.0,0.00021917,2]
[366427031,1750252237638,-166.694528,0.00021917,2]
[366427032,1750252237647,-151.0,0.00021917,2]
[366427033,1750252237657,-151.0,0.00021917,2]
[366427034,1750252237668,-151.0,0.00021917,2]
[366427036,1750252237677,-151.0,0.00021917,2]
[366427037,1750252237686,-431.7185109,0.00021917,6]
[366427039,1750252237696,-151.0,0.00021917,2]
[366427041,1750252237705,-151.0,0.00021917,2]
[366427043,1750252237715,-151.0,0.00021917,2]
[366427044,1750252237727,-151.0,0.00021917,2]
[366427045,1750252237737,-151.0,0.00021917,2]
[366427046,1750252237747,-228.033839,0.00021917,2]
[366427047,1750252237757,-460.0,0.00021917,6]
[366427049,1750252237767,-460.0,0.00021917,6]
[366427050,1750252237776,-420.0,0.00021917,6]
[366427051,1750252237787,-237.18987938,0.00021917,6]